bitfinex/quotes_SOLUSD_20250414
["timestamp","ask_amount","ask_price","bid_price","bid_amount"]
[1744623853901,18.64964886,131.94,131.91,6.1276]
[1744623854103,1.5433,131.95,131.92,11.76062857]
[1744623854292,18.64964886,131.96,131.92,11.76062857]
[1744623854485,18.64964886,131.96,131.93,6.0638]
[1744623854690,18.64964886,131.94,131.92,6.0641]
[1744623854889,18.64964886,131.94,131.91,6.1275]
[1744623856497,30.41027743,131.94,131.91,0.063]
[1744623856693,18.64964886,131.94,131.91,0.063]
[1744623858411,30.41027743,131.96,131.91,0.063]
[1744623858790,11.76062857,131.94,131.91,0.063]
[1744623860491,18.64964886,131.92,131.91,0.063]
[1744623860691,30.41027743,131.92,131.91,0.063]
[1744623863694,44.58487743,131.92,131.91,0.063]
[1744623863898,38.52067743,131.92,131.91,0.063]
[1744623864097,26.76004886,131.92,131.91,0.063]
[1744623864298,7.9666,131.96,131.91,94.42362857]
[1744623864610,7.9666,131.96,131.92,11.76062857]
[1744623864912,19.72722857,131.96,131.91,94.42362857]
[1744623865120,18.64964886,131.95,131.91,94.42362857]
[1744623865294,30.41027743,131.95,131.91,82.663]
[1744623865702,30.41027743,131.95,131.91,0.063]
[1744623866201,30.41027743,131.95,131.91,6.1277]
[1744623866400,30.41027743,131.95,131.91,0.063]
[1744623866622,18.64964886,131.93,131.91,0.063]
[1744623867208,30.41027743,131.93,131.91,0.063]
[1744623867711,18.64964886,131.93,131.91,0.063]
[1744623868318,30.41027743,131.95,131.91,0.063]
[1744623868620,18.64964886,131.95,131.91,11.82362857]
[1744623869201,7.5883,131.99,131.93,11.76062857]
[1744623869418,1.5462,131.99,131.95,11.76062857]
[1744623869620,6.96,132.01,131.97,11.76062857]
[1744623870021,6.96,132.01,131.91,8.30732314]
[1744623870022,8.0651,131.97,131.91,0.063]
[1744623870214,30.41027743,131.95,131.91,0.063]
[1744623870412,18.64964886,131.93,131.91,0.063]
[1744623871815,30.41027743,131.93,131.91,0.063]
[1744623872516,18.64964886,131.95,131.91,11.82362857]
[1744623873022,19.82572857,131.97,131.91,11.82362857]
[1744623873224,18.64964886,131.96,131.92,11.76062857]
[1744623873523,11.76062857,131.98,131.92,11.76062857]
[1744623873709,6.0612,131.99,131.94,17.82392857]
[1744623873710,11.76062857,131.99,131.94,17.82392857]
[1744623873907,19.63422857,132.0,131.94,17.82392857]
[1744623874215,18.64964886,131.99,131.94,17.82392857]
[1744623874416,25.69482857,132.0,131.91,0.063]
[1744623874417,7.6709,131.96,131.91,0.063]
[1744623874629,30.41027743,131.92,131.91,0.063]
[1744623875925,36.47447743,131.92,131.91,0.063]
[1744623877522,30.41027743,131.92,131.91,0.063]
[1744623877826,18.64964886,131.93,131.91,0.063]
[1744623878014,11.76062857,131.94,131.91,0.063]
[1744623878208,13.7334,131.96,131.91,0.063]
[1744623878209,30.41027743,131.95,131.91,0.063]
[1744623878432,11.76062857,131.94,131.91,0.063]
[1744623879523,30.41027743,131.95,131.91,6.1277]
[1744623879722,11.76062857,131.94,131.91,0.063]
[1744623880311,11.76062857,131.93,131.91,0.063]
[1744623880515,11.76062857,131.95,131.91,0.063]
[1744623880711,18.64964886,131.99,131.91,0.063]
[1744623880712,11.76062857,131.97,131.91,94.42362857]
[1744623880930,18.64964886,131.96,131.92,11.76062857]
[1744623881530,18.64964886,131.96,131.92,6.0642]
[1744623882221,11.76062857,131.97,131.92,17.82482857]
[1744623882433,11.76062857,132.0,131.95,11.76062857]
[1744623882614,11.76062857,132.01,131.96,11.76062857]
[1744623882815,18.64964886,132.0,131.96,11.76062857]
[1744623883215,18.64964886,132.02,131.96,94.36062857]
[1744623883415,18.64964886,132.02,131.97,11.76062857]
[1744623883416,30.41027743,132.02,131.97,11.76062857]
[1744623883616,18.64964886,132.02,131.98,6.0615]
[1744623883816,18.64964886,132.02,131.98,88.6615]
[1744623883817,30.41027743,132.02,131.98,88.6615]
[1744623884339,18.64964886,132.02,131.98,88.6615]
[1744623884539,30.41027743,132.02,131.98,88.6615]
[1744623884840,18.64964886,132.02,131.98,88.6615]
[1744623885041,30.41027743,132.02,131.98,88.6615]
[1744623885934,18.64964886,132.02,131.98,100.42212857]
[1744623886335,18.64964886,132.02,131.98,115.57592857]
[1744623887243,18.64964886,132.03,131.99,11.76062857]
[1744623887826,18.64964886,132.03,132.0,6.0606]
[1744623888955,11.76062857,132.03,132.0,6.0606]
[1744623889258,11.76062857,132.03,132.0,88.6606]
[1744623889917,11.76062857,132.04,132.0,88.6606]
[1744623890123,18.64964886,132.03,132.0,88.6606]
[1744623891447,11.76062857,132.06,132.02,11.76062857]
[1744623891746,11.76062857,132.06,132.03,6.0592]
[1744623891747,18.64964886,132.06,132.03,6.0592]
[1744623892239,11.76062857,132.06,132.03,6.0592]
[1744623893257,18.64964886,132.06,132.03,6.0592]
[1744623894048,11.76062857,132.07,132.03,17.81982857]
[1744623894248,11.76062857,132.07,132.03,100.41982857]
[1744623896149,30.44027743,132.08,132.03,115.56782857]
[1744623896344,0.03,132.08,132.04,11.76062857]
[1744623897144,0.03,132.08,132.05,11.76062857]
[1744623897342,0.03,132.08,132.06,11.76062857]
[1744623898151,0.03,132.08,132.07,17.81792857]
[1744623899248,0.03,132.08,132.07,100.41792857]
[1744623900251,0.03,132.08,132.07,100.84441328]
[1744623900454,0.03,132.09,132.08,12.18711328]
[1744623900651,0.03,132.09,132.08,94.78711328]
[1744623900947,11.76062857,132.15,132.08,94.78711328]
[1744623901150,11.79062857,132.16,132.11,11.76062857]
[1744623901449,0.03,132.16,132.12,11.76062857]
[1744623902039,0.03,132.16,132.13,11.76062857]
[1744623902435,0.03,132.16,132.14,6.0541]
[1744623902639,30.41027743,132.15,132.14,82.6]
[1744623903351,18.64964886,132.14,132.09,82.6]
[1744623903537,18.64964886,132.09,132.06,82.6]
[1744623903737,11.76062857,132.09,132.06,88.6576]
[1744623903941,8.6915,132.13,132.07,11.76062857]
[1744623904243,30.41027743,132.12,132.07,94.36062857]
[1744623904454,11.76062857,132.12,132.08,6.0569]
[1744623905034,11.76062857,132.14,132.09,11.76062857]
[1744623906150,11.76062857,132.1,132.08,82.6]
[1744623906356,30.41027743,132.12,132.07,6.0572]
[1744623906550,11.76062857,132.09,132.06,6.0578]
[1744623907852,24.70514886,132.11,132.06,6.0578]
[1744623907853,18.64964886,132.1,132.06,6.0578]
[1744623908047,11.76062857,132.08,132.05,88.6581]
[1744623909038,11.76062857,132.07,132.05,82.6]
[1744623909262,11.76062857,132.06,132.05,82.6]
[1744623909559,11.76062857,132.07,132.05,82.6]
[1744623910935,18.64964886,132.07,132.05,82.6]
[1744623911134,30.41027743,132.07,132.05,82.6]
[1744623911859,30.41027743,132.06,132.05,82.6]
[1744623912760,30.41027743,132.06,132.03,6.0591]
[1744623912950,18.64964886,132.05,132.02,82.6]
[1744623913253,30.41027743,132.05,132.02,82.6]
[1744623914751,30.41027743,132.05,132.02,88.6596]
[1744623915260,30.41027743,132.05,132.02,82.6]
[1744623917476,11.76062857,132.04,132.02,82.6]
[1744623920738,18.64964886,132.07,132.02,88.6596]
[1744623920943,30.41027743,132.07,132.02,100.42022857]
[1744623921367,11.76062857,132.06,132.02,88.6596]
[1744623922458,11.76062857,132.06,132.02,82.6]
[1744623922459,30.41027743,132.03,132.02,82.6]
[1744623922853,30.41027743,132.03,132.0,6.0605]
[1744623923041,11.76062857,132.02,132.0,6.0605]
[1744623923241,11.76062857,132.02,132.0,88.6605]
[1744623923465,11.76062857,132.03,132.0,88.6605]
[1744623923949,11.76062857,132.02,132.0,82.6]
[1744623924150,18.64964886,132.05,131.99,0.063]
[1744623924151,30.41027743,132.01,131.99,0.063]
[1744623924351,30.41027743,132.0,131.99,0.063]
[1744623924874,11.76062857,132.03,131.99,6.124]
[1744623925075,11.76062857,132.04,131.99,17.88462857]
[1744623925754,11.76062857,132.03,131.99,6.124]
[1744623927066,11.76062857,132.01,131.99,0.063]
[1744623927269,11.76062857,132.01,131.99,82.663]
[1744623927653,30.41027743,132.0,131.99,82.663]
[1744623928673,30.41027743,132.0,131.99,0.063]
[1744623928674,36.47087743,132.0,131.99,0.063]
[1744623929256,30.41027743,132.0,131.99,0.063]
[1744623929463,18.64964886,132.02,131.99,0.063]
[1744623929668,11.76062857,132.0,131.99,0.063]
[1744623932458,30.41027743,132.0,131.99,0.063]
[1744623932657,36.47087743,132.0,131.99,0.063]
[1744623933275,30.41027743,132.0,131.99,0.063]
[1744623934080,6.0589,132.04,131.99,0.063]
[1744623934272,11.76062857,132.02,131.99,0.063]
[1744623934969,11.76062857,132.01,131.99,0.063]
[1744623935360,11.76062857,132.0,131.99,0.063]
[1744623939175,30.41027743,132.0,131.99,0.063]
[1744623943080,11.76062857,132.02,131.99,0.063]
[1744623943265,18.64964886,132.01,131.99,0.063]
[1744623943466,7.53978536,132.02,131.99,82.663]
[1744623944060,7.53978536,132.0,131.99,0.063]
[1744623944481,7.53978536,132.01,131.99,0.063]
[1744623945190,11.78231522,132.01,131.99,0.063]
[1744623945485,11.78231522,132.0,131.99,0.063]
[1744623947792,30.43196408,132.0,131.99,0.063]
[1744623947988,36.49256408,132.0,131.99,0.063]
[1744623948167,3.93609744,132.05,131.99,0.063]
[1744623948370,30.43196408,132.02,131.99,0.063]
[1744623949271,11.78231522,132.01,131.99,0.063]
[1744623950588,18.64964886,132.04,131.99,0.063]
[1744623950779,11.78231522,132.03,131.99,0.063]
[1744623951894,11.78231522,132.01,131.99,0.063]
[1744623953595,11.78231522,132.01,131.99,82.663]
[1744623957297,11.78231522,132.01,131.99,88.724]
[1744623957505,11.78231522,132.02,131.99,82.663]
[1744623957710,42.2142793,132.0,131.99,0.063]
[1744623958013,18.64964886,131.99,131.94,82.663]
[1744623958180,30.43196408,131.95,131.94,0.063]
[1744623960884,18.64964886,131.98,131.94,0.063]
[1744623961102,11.78231522,131.95,131.94,82.663]
[1744623963208,48.2771793,131.95,131.94,0.063]
[1744623965403,18.64964886,131.94,131.92,0.063]
[1744623965608,37.39196408,131.93,131.91,0.063]
[1744623965811,11.78231522,131.92,131.91,0.063]
[1744623967098,36.49616408,131.92,131.91,0.063]
[1744623967300,18.64964886,131.91,131.89,2.5998265]
[1744623967499,11.78231522,131.9,131.89,2.5998265]
[1744623967900,30.43196408,131.9,131.89,2.5998265]
[1744623969223,36.49716408,131.9,131.89,2.5998265]
[1744623969720,18.64964886,131.89,131.85,0.063]
[1744623969917,42.2142793,131.89,131.85,0.063]
[1744623971120,48.2798793,131.89,131.85,0.063]
[1744623971603,63.4439793,131.89,131.85,0.063]
[1744623971799,11.78231522,131.86,131.85,0.063]
[1744623971998,30.43196408,131.86,131.85,0.063]
[1744623972220,18.64964886,131.83,131.8,0.063]
[1744623972425,30.43196408,131.81,131.8,0.063]
[1744623973222,36.50126408,131.81,131.73,12.5391]
[1744623973420,11.78231522,131.76,131.73,12.5391]
[1744623973825,11.78231522,131.77,131.73,6.0728]
[1744623974413,11.78231522,131.76,131.73,6.0728]
[1744623974629,11.78231522,131.75,131.73,6.0728]
[1744623974924,18.64964886,131.79,131.73,6.0728]
[1744623974925,11.78231522,131.76,131.73,6.0728]
[1744623975129,18.64964886,131.81,131.73,33.03761522]
[1744623975326,11.78231522,131.78,131.74,6.1777]
[1744623976528,11.78231522,131.79,131.74,17.96001522]
[1744623976909,11.78231522,131.78,131.74,6.1777]
[1744623977318,11.78231522,131.77,131.75,6.0721]
[1744623977520,11.78231522,131.76,131.75,6.0721]
[1744623977835,11.78231522,131.79,131.75,6.0721]
[1744623978018,11.78231522,131.78,131.75,6.0721]
[1744623978714,11.78231522,131.76,131.74,6.0724]
[1744623978909,11.78231522,131.76,131.74,88.6724]
[1744623980227,11.78231522,131.77,131.74,88.6724]
[1744623980933,11.78231522,131.76,131.74,88.6724]
[1744623982527,11.78231522,131.76,131.74,82.6]
[1744623982709,11.78231522,131.76,131.74,88.6725]
[1744623983228,11.78231522,131.77,131.74,88.6725]
[1744623983434,11.78231522,131.79,131.74,100.45481522]
[1744623984008,11.78231522,131.79,131.74,115.63621522]
[1744623985229,11.78231522,131.8,131.75,11.78231522]
[1744623985414,11.78231522,131.8,131.76,6.0716]
[1744623985810,11.78231522,131.78,131.76,82.6]
[1744623986017,18.64964886,131.76,131.7,6.0744]
[1744623986216,18.64964886,131.76,131.72,11.78231522]
[1744623986411,30.43196408,131.76,131.71,11.78231522]
[1744623987217,18.64964886,131.74,131.7,17.85671522]
[1744623987632,30.43196408,131.74,131.7,6.0744]
[1744623987833,36.50446408,131.74,131.69,17.91991522]
[1744623988425,18.64964886,131.74,131.7,11.78231522]
[1744623988732,30.43196408,131.74,131.69,17.91991522]
[1744623988937,18.64964886,131.74,131.7,11.78231522]
[1744623989536,11.78231522,131.75,131.71,6.0739]
[1744623989740,18.64964886,131.77,131.71,6.0739]
[1744623990043,11.78231522,131.75,131.71,6.0739]
[1744623990230,11.78231522,131.75,131.71,17.85621522]
[1744623990738,11.78231522,131.75,131.69,6.1378]
[1744623990944,18.64964886,131.74,131.7,11.78231522]
[1744623991250,11.78231522,131.75,131.71,11.78231522]
[1744623991950,24.72134886,131.76,131.71,11.78231522]
[1744623991951,30.43196408,131.76,131.71,11.78231522]
[1744623992152,11.78231522,131.77,131.72,11.78231522]
[1744623993040,30.43196408,131.76,131.69,97.8501]
[1744623993247,30.43196408,131.76,131.71,11.78231522]
[1744623993553,30.43196408,131.77,131.72,11.78231522]
[1744623993957,18.76231522,131.78,131.73,11.78231522]
[1744623994138,30.43196408,131.8,131.75,11.78231522]
[1744623994526,30.43196408,131.8,131.76,11.78231522]
[1744623995158,30.43196408,131.8,131.76,6.0712]
[1744623995656,30.43196408,131.8,131.76,17.85351522]
[1744623997255,30.43196408,131.8,131.76,6.0712]
[1744623997457,18.64964886,131.81,131.76,17.85351522]
[1744623997656,30.43196408,131.81,131.76,17.85351522]
[1744623998156,11.78231522,131.82,131.77,11.78231522]
[1744623998656,30.43196408,131.81,131.76,17.85351522]
[1744624000468,30.43196408,131.81,131.76,100.45351522]
[1744624000769,36.50146408,131.81,131.76,100.45351522]
[1744624000939,11.78231522,131.79,131.76,88.6712]
[1744624001139,11.78231522,131.78,131.76,82.6]
[1744624002765,17.85301522,131.78,131.73,107.43501522]
[1744624002943,11.78231522,131.77,131.73,88.6727]
[1744624003270,11.78231522,131.78,131.73,100.45501522]
[1744624006080,11.78231522,131.77,131.73,88.6727]
[1744624006235,11.78231522,131.75,131.73,82.6]
[1744624006441,11.78231522,131.77,131.73,88.6728]
[1744624007161,24.72034886,131.78,131.73,88.6728]
[1744624007367,11.78231522,131.76,131.73,82.6]
[1744624007865,11.78231522,131.75,131.73,82.6]
[1744624008466,11.78231522,131.76,131.73,82.6]
[1744624008660,11.78231522,131.76,131.73,88.6728]
[1744624009047,11.78231522,131.76,131.73,82.6]
[1744624009360,18.64964886,131.73,131.69,0.063]
[1744624009656,11.78231522,131.72,131.69,0.063]
[1744624011152,11.78231522,131.7,131.69,0.063]
[1744624011957,30.43196408,131.7,131.69,0.063]
[1744624012544,36.50636408,131.7,131.69,0.063]
[1744624013855,11.78231522,131.7,131.69,0.063]
[1744624014164,6.0741,131.71,131.69,0.063]
[1744624014352,11.78231522,131.7,131.69,0.063]
[1744624014667,11.78231522,131.71,131.69,0.063]
[1744624016366,11.78231522,131.72,131.69,0.063]
[1744624017265,11.78231522,131.73,131.69,0.063]
[1744624017566,14.6317,131.76,131.7,17.85671522]
[1744624017767,11.78231522,131.75,131.7,17.85671522]
[1744624017945,11.78231522,131.75,131.7,6.0744]
[1744624018149,11.78231522,131.75,131.7,17.85671522]
[1744624018344,11.78231522,131.75,131.71,11.78231522]
[1744624018550,18.76231522,131.76,131.71,11.78231522]
[1744624019251,11.78231522,131.77,131.72,11.78231522]
[1744624019468,11.78231522,131.77,131.73,6.073]
[1744624019674,11.78231522,131.77,131.73,88.673]
[1744624020567,11.78231522,131.78,131.73,100.45531522]
[1744624020769,11.78231522,131.79,131.74,11.78231522]
[1744624020952,6.069,131.82,131.76,11.78231522]
[1744624021153,10.01670003,131.83,131.77,11.78231522]
[1744624021363,11.78231522,131.82,131.77,11.78231522]
[1744624021554,11.78231522,131.82,131.78,6.0707]
[1744624021748,11.78231522,131.81,131.77,88.6709]
[1744624022051,6.0689,131.82,131.77,88.6709]
[1744624022052,11.78231522,131.84,131.79,11.78231522]
[1744624022257,11.78231522,131.83,131.79,94.38231522]
[1744624022458,11.78231522,131.83,131.79,82.6]
[1744624022675,11.78231522,131.84,131.79,82.6]
[1744624022870,11.78231522,131.83,131.79,82.6]
[1744624023370,18.76231522,131.85,131.8,11.78231522]
[1744624023576,6.98,131.85,131.81,11.78231522]
[1744624023884,6.98,131.85,131.81,17.85161522]
[1744624024254,11.81231522,131.86,131.81,100.45161522]
[1744624024457,17.87931522,131.86,131.81,88.6693]
[1744624024761,11.78231522,131.85,131.81,100.45161522]
[1744624024961,11.81231522,131.86,131.82,11.78231522]
[1744624025169,11.81231522,131.86,131.82,94.38231522]
[1744624025353,0.03,131.86,131.82,82.6]
[1744624025552,0.03,131.86,131.82,94.38231522]
[1744624025757,0.03,131.86,131.82,100.45101522]
[1744624026763,36.52906408,131.86,131.82,82.6]
[1744624027471,30.46196408,131.86,131.82,100.45111522]
[1744624027862,11.78231522,131.85,131.8,94.38231522]
[1744624028056,11.78231522,131.82,131.8,82.6]
[1744624028256,11.78231522,131.81,131.77,82.6]
[1744624028681,11.78231522,131.81,131.77,88.6711]
[1744624029163,11.78231522,131.81,131.75,82.6]
[1744624029164,11.78231522,131.79,131.75,82.6]
[1744624029559,11.78231522,131.79,131.75,88.6718]
[1744624029778,30.43196408,131.8,131.75,100.45411522]
[1744624030078,18.64964886,131.81,131.75,100.45411522]
[1744624030384,30.43196408,131.81,131.76,11.78231522]
[1744624030579,11.78231522,131.82,131.76,82.6]
[1744624030785,11.78231522,131.83,131.78,11.78231522]
[1744624030985,11.78231522,131.84,131.79,17.85211522]
[1744624031278,18.74231522,131.85,131.8,11.78231522]
[1744624031780,18.74231522,131.85,131.81,11.78231522]
[1744624031983,6.96,131.85,131.81,11.78231522]
[1744624032181,0.03,131.86,131.83,11.78231522]
[1744624032392,0.03,131.86,131.83,82.6]
[1744624032769,11.81231522,131.86,131.83,82.6]
[1744624032971,11.78231522,131.85,131.83,82.6]
[1744624033174,11.81231522,131.86,131.83,82.6]
[1744624033481,0.03,131.86,131.83,100.45071522]
[1744624034285,17.87941522,131.86,131.83,82.6]
[1744624034486,0.03,131.86,131.83,82.6]
[1744624034684,0.03,131.86,131.83,88.6684]
[1744624035183,0.03,131.86,131.83,82.6]
[1744624035567,30.43196408,131.85,131.8,11.78231522]
[1744624035773,30.43196408,131.85,131.8,94.38231522]
[1744624036182,11.78231522,131.84,131.8,94.38231522]
[1744624036388,30.43196408,131.85,131.8,94.38231522]
[1744624036577,30.46196408,131.86,131.81,11.78231522]
[1744624036881,0.03,131.86,131.82,11.78231522]
[1744624037087,0.03,131.86,131.83,11.78231522]
[1744624037282,0.03,131.86,131.83,94.38231522]
[1744624037482,0.03,131.86,131.84,11.78231522]
[1744624037668,0.03,131.86,131.85,11.78231522]
[1744624037863,0.03,131.86,131.84,82.6]
[1744624038063,0.03,131.86,131.84,94.38231522]
[1744624038569,0.03,131.86,131.84,82.6]
[1744624039993,0.03,131.86,131.84,88.6679]
[1744624040285,0.03,131.86,131.84,82.6]
[1744624041189,0.03,131.86,131.84,88.6678]
[1744624041375,0.03,131.86,131.85,11.78231522]
[1744624041887,0.03,131.86,131.85,17.84981522]
[1744624042296,0.03,131.86,131.85,100.87629993]
[1744624042585,0.03,131.86,131.85,108.99549993]
[1744624042785,0.03,131.87,131.86,82.57]
[1744624042973,0.0001,131.87,131.86,94.77879993]
[1744624043167,0.0001,131.87,131.86,94.35231522]
[1744624043879,0.0001,131.87,131.86,100.41931522]
[1744624046391,0.0001,131.87,131.86,100.84579993]
[1744624047490,0.0001,131.87,131.86,82.57]
[1744624047700,0.0001,131.87,131.86,88.637]
[1744624047881,0.0001,131.87,131.86,100.41931522]
[1744624049895,0.0001,131.87,131.86,82.57]
[1744624050992,0.0001,131.87,131.86,100.41931522]
[1744624052174,0.0001,131.87,131.86,82.57]
[1744624054101,0.0001,131.87,131.86,100.41931522]
[1744624054299,0.0001,131.87,131.86,100.84579993]
[1744624057803,0.0001,131.87,131.86,100.41931522]
[1744624059207,0.0001,131.87,131.86,100.84579993]
[1744624061903,0.0001,131.87,131.86,88.637]
[1744624066292,11.78241522,131.87,131.84,82.57]
[1744624066613,11.78231522,131.86,131.84,82.57]
[1744624067392,0.0001,131.87,131.84,82.57]
[1744624068419,0.0001,131.87,131.84,88.6377]
[1744624071216,0.0001,131.87,131.86,12.20879993]
[1744624071397,0.0001,131.87,131.86,94.77879993]
[1744624072720,0.0001,131.87,131.86,100.84579993]
[1744624075124,0.0001,131.87,131.86,88.637]
[1744624076115,0.0001,131.87,131.86,82.57]
[1744624076319,0.0001,131.87,131.86,102.44709993]
[1744624076702,26.03,131.93,131.88,0.42648471]
[1744624076904,26.03,131.93,131.9,11.78231522]
[1744624077220,26.03,131.93,131.91,6.0647]
[1744624077432,0.03,131.93,131.91,100.41691522]
[1744624078341,0.03,131.93,131.92,11.78231522]
[1744624078841,0.03,131.93,131.91,100.41691522]
[1744624079814,0.03,131.93,131.91,82.5699]
[1744624080333,30.43196408,131.92,131.91,82.5699]
[1744624080965,18.64964886,131.92,131.91,82.5699]
[1744624081130,11.81231522,131.93,131.91,82.5699]
[1744624081638,18.64964886,131.88,131.85,82.5699]
[1744624081817,11.78231522,131.86,131.84,6.0677]
[1744624082016,11.78231522,131.86,131.82,15.1721]
[1744624082219,30.43196408,131.88,131.83,11.78231522]
[1744624082515,30.43196408,131.91,131.86,11.78231522]
[1744624082825,30.43196408,131.91,131.86,94.35221522]
[1744624083444,30.43196408,131.91,131.87,6.0665]
[1744624083647,11.78231522,131.9,131.87,6.0665]
[1744624085858,11.78231522,131.9,131.86,82.5699]
[1744624085859,17.84771522,131.9,131.86,82.5699]
[1744624086043,11.78231522,131.89,131.86,82.5699]
[1744624086244,11.78231522,131.89,131.86,88.6368]
[1744624086645,11.78231522,131.89,131.86,82.5699]
[1744624086842,11.78231522,131.87,131.86,82.5699]
[1744624087158,11.78231522,131.87,131.83,6.0681]
[1744624087341,11.78231522,131.87,131.83,88.638]
[1744624087865,11.78231522,131.87,131.83,100.42031522]
[1744624089346,11.78231522,131.86,131.83,88.638]
[1744624089727,18.64964886,131.89,131.83,100.42031522]
[1744624089931,11.78231522,131.89,131.84,11.78231522]
[1744624090330,11.78231522,131.88,131.83,115.59131522]
[1744624091558,18.64964886,131.89,131.85,11.78231522]
[1744624091732,30.43196408,131.89,131.84,11.78231522]
[1744624092753,11.78231522,131.9,131.85,17.84981522]
[1744624092962,11.78231522,131.9,131.85,100.41971522]
[1744624093555,11.78231522,131.89,131.85,88.6374]
[1744624094236,11.78231522,131.9,131.85,100.41971522]
[1744624095259,11.78231522,131.9,131.85,115.58841522]
[1744624096761,30.43196408,131.91,131.86,11.78231522]
[1744624096949,11.78231522,131.92,131.87,11.78231522]
[1744624097254,1.5568,131.93,131.89,0.14216157]
[1744624097457,0.03,131.93,131.92,11.92447679]
[1744624097663,0.03,131.93,131.92,94.77869993]
[1744624098440,0.03,131.93,131.92,94.35221522]
[1744624098647,0.03,131.93,131.92,82.5699]
[1744624099772,0.03,131.93,131.92,88.6341]
[1744624101475,0.03,131.93,131.92,100.41641522]
[1744624102955,0.03,131.93,131.92,100.84289993]
[1744624105576,0.03,131.93,131.92,88.6341]
[1744624105972,30.46196408,131.93,131.9,82.5699]
[1744624106276,11.78231522,131.91,131.9,82.5699]
[1744624106583,36.49676408,131.91,131.87,82.5699]
[1744624106876,11.78231522,131.89,131.87,82.5699]
[1744624107281,18.88568113,131.9,131.87,88.6364]
[1744624107670,18.88568113,131.9,131.87,82.5699]
[1744624108782,18.88568113,131.89,131.87,82.5699]
[1744624108954,18.88568113,131.88,131.87,82.5699]
[1744624110559,18.88568113,131.89,131.87,82.5699]
[1744624111790,0.03,131.93,131.87,107.52208113]
[1744624111953,0.03,131.93,131.89,19.0278427]
[1744624112159,0.03,131.93,131.92,18.88568113]
[1744624112379,0.03,131.93,131.92,101.88206584]
[1744624113957,0.03,131.93,131.92,107.94626584]
[1744624115063,0.03,131.93,131.92,107.51978113]
[1744624115264,0.03,131.93,131.92,88.6341]
[1744624116877,0.03,131.93,131.92,82.5699]
[1744624135191,0.03,131.93,131.92,94.79047004]
[1744624135387,0.03,131.93,131.92,82.5699]
[1744624138995,0.03,131.93,131.92,94.36398533]
[1744624139392,0.03,131.93,131.92,82.5699]
[1744624149607,7.57864307,131.93,131.92,82.5699]
[1744624149910,13.64244307,131.93,131.92,82.5699]
[1744624150093,6.0938,131.93,131.92,82.5699]
[1744624152720,13.64244307,131.93,131.92,82.5699]
[1744624152923,20.18914886,131.92,131.89,82.5699]
[1744624153124,18.64964886,131.89,131.83,82.5699]
[1744624153413,7.54864307,131.87,131.83,82.5699]
[1744624153911,6.067,131.86,131.83,82.5699]
[1744624154415,13.61544307,131.87,131.83,82.5699]
[1744624155304,17.8746265,131.87,131.83,82.5699]
[1744624157493,21.2265,131.91,131.85,11.8078265]
[1744624157717,11.8078265,131.9,131.85,94.3777265]
[1744624157912,11.8078265,131.89,131.85,94.3777265]
[1744624158096,11.8078265,131.88,131.85,82.5699]
[1744624158901,17.8743265,131.88,131.85,82.5699]
[1744624160012,6.0658,131.89,131.85,94.3777265]
[1744624160218,17.8732265,131.9,131.85,94.3777265]
[1744624160792,6.0649,131.91,131.86,12.23431121]
[1744624161090,18.7978265,131.93,131.88,11.8078265]
[1744624161296,0.03,131.93,131.89,12.23431121]
[1744624161504,17.9017265,131.93,131.89,82.5699]
[1744624161705,6.0939,131.93,131.89,82.5699]
[1744624161912,11.8078265,131.92,131.89,82.5699]
[1744624162719,17.8721265,131.92,131.89,82.5699]
[1744624163213,11.8078265,131.9,131.89,82.5699]
[1744624163420,11.8078265,131.9,131.85,82.5699]
[1744624163795,11.8078265,131.87,131.85,82.5699]
[1744624164210,11.8078265,131.88,131.85,82.5699]
[1744624164923,21.2282,131.9,131.85,82.5699]
[1744624165121,11.8078265,131.88,131.85,82.5699]
[1744624165415,11.8078265,131.86,131.85,82.5699]
[1744624167120,17.8746265,131.87,131.85,82.5699]
[1744624168220,6.0668,131.87,131.85,82.5699]
[1744624168519,17.8746265,131.87,131.85,82.5699]